[Event "52nd Rilton Cup 2024-25"]
[Site "Stockholm"]
[Date "2025.01.05"]
[Round "9.13"]
[White "Mattenberger, Matthias"]
[Black "Johansson, Linus"]
[Result "1-0"]
[ECO "E40"]
[WhiteElo "2267"]
[BlackElo "2404"]
[Annotator "TA"]
[PlyCount "75"]
[EventDate "2024.12.23"]
[EventType "swiss"]
[EventCountry "SWE"]
[SourceTitle "playchess.com"]
[Source "ChessBase"]
[SourceQuality "1"]
[TimeControl "40/5400+30:1800+30"]

{[%evp 26,75,0,0,0,10,40,0,1,0,3,0,0,0,79,75,81,-27,56,52,71,57,89,60,147,62,75,73,130,143,122,118,170,163,280,233,275,196,187,208,280,326,308,307,468,385,7123,5485,29991,29992,29993,29993]} 1. d4 {[%emt 0:00:06]} Nf6 {[%emt 0:12:09]} 2. c4 {[%emt 0:00:16]} e6 {[%emt 0:00:11]} 3. Nc3 {[%emt 0:00:23]} Bb4 {[%emt 0:00:04]} 4. e3 {[%emt 0:00:26]} d5 {[%emt 0:00:03]} 5. a3 {[%emt 0:01:53]} Bxc3+ {[%emt 0:00:05]} 6. bxc3 {[%emt 0:00:05]} O-O {[%emt 0:00:09]} 7. cxd5 {[%emt 0:00:09]} exd5 {[%emt 0:00:11]} 8. Bd3 {[%emt 0:00:17]} b6 {[%emt 0:00:24]} 9. Ne2 {[%emt 0:00:34]} c5 {[%emt 0:01:34]} 10. O-O {[%emt 0:00:31]} Ba6 {[%emt 0:00:00]} 11. f3 {[%emt 0:00:49]} Bxd3 {[%emt 0:00:00]} 12. Qxd3 {[%emt 0:00:21]} Nc6 {[%emt 0:00:00]} 13. Ng3 {[%emt 0:01:34]} Re8 {[%emt 0:00:15]} 14. Bb2 {[%emt 0:02:37]} h5 {[%emt 0:00:59][%cal Bh7h5,Bh5h4][%mdl 32]} 15. Rae1 {[%emt 0:00:44]} h4 {[%emt 0:02:22]} 16. Nh1 {[%emt 0:13:13]} Qd6 {[%emt 0:16:46]} 17. Nf2 {[%emt 0:08:32]} Rad8 {[%emt 0:00:20]} 18. Kh1 {[%emt 0:11:24]} Nh5 {[%emt 0:12:41]} 19. Qf5 {[%emt 0:06:40]} g6 {[%emt 0:11:33]} (19... Qg6 $11 {remains equal.} 20. Qh3 Qg5) 20. Qg4 $16 {[%emt 0:24:37]} Qe7 {[%emt 0:25:06]} 21. Nd3 {[%emt 0:00:56]} (21. e4 $16) 21... c4 {[%emt 0:02:32]} (21... Rd6 $1 $11) 22. Nf4 $1 $14 {[%emt 0:01:31]} Ng7 {[%emt 0:02:16]} 23. Nh3 {[%emt 0:01:56]} (23. e4 f5 24. Qh3 (24. Qxg6 $2 Rd6 $19) 24... g5 $15) 23... Rd6 {[%emt 0:01:53][%cal Bd8d6,Bd6c6,Bc6b6,Bb6b5][%mdl 32]} 24. e4 {[%emt 0:05:18][%cal Be3e4,Be4e5][%mdl 32]} Nd8 {[%emt 0:01:48]} (24... f5 $1 $14 25. Qf4 Nh5) 25. Bc1 {[%emt 0:02:24]} ({White should try} 25. e5 $16 f5 26. exf6 Qxe1 27. Rxe1 Rxe1+ 28. Ng1 Rxf6 29. Qxh4) 25... f5 {[%emt 0:00:21]} 26. Qf4 $36 {[%emt 0:00:46][%mdl 2048] White is really pushing.} Nf7 {[%emt 0:03:12]} ({Black should try} 26... Nh5 27. Qg5 dxe4) 27. e5 $16 {[%emt 0:05:53]} Rc6 {[%emt 0:00:09]} 28. Qd2 {[%emt 0:01:35]} Ne6 {[%emt 0:00:23]} (28... b5 $16) 29. a4 {[%emt 0:00:32]} b5 {[%emt 0:02:09]} (29... g5 {was called for.} 30. Rg1 Kh8) 30. axb5 $18 {[%emt 0:01:40]} Rb6 {[%emt 0:00:01]} 31. g4 {[%emt 0:01:18]} hxg3 {[%emt 0:00:49] [#]} 32. Rg1 $1 {[%emt 0:00:34][%cal Bf1g1,Bg1g3,Bg3g6,Bg6e6][%mdl 32]} ({Don't play} 32. hxg3 $6 Rxb5 33. Re2 Kg7 $16) 32... Rxb5 {[%emt 0:02:48]} 33. Rxg3 {[%emt 0:00:19]} Nh8 {[%emt 0:00:15]} 34. Reg1 {[%emt 0:01:36] aiming for Rxg6+.} Qh4 {[%emt 0:02:50]} (34... Qg7 $142 35. Nf4 Nxf4) 35. Qg2 {[%emt 0:02:57] Rxg6+ would kill now.} Kf8 $2 {[%emt 0:00:53]} (35... Qh7 36. Ng5 Qe7 37. Nxe6 (37. f4 Nxg5 38. Rxg5 Qe6 $18) 37... Qxe6) 36. Ba3+ {[%emt 0:00:17]} Kg7 {[%emt 0:00:42]} 37. Rxg6+ {[%emt 0:00:14]} Kh7 {[%emt 0:00:21] [#]} 38. Rxe6 $1 {[%emt 0:00:09][%mdl 512]} 1-0

[Event "52nd Rilton Cup 2024-25"]
[Site "Stockholm"]
[Date "2025.01.05"]
[Round "9.14"]
[White "Wong, Zhenyong Jayden"]
[Black "Rakshitta Ravi"]
[Result "1/2-1/2"]
[ECO "A62"]
[WhiteElo "2396"]
[BlackElo "2320"]
[Annotator "TA"]
[PlyCount "41"]
[EventDate "2024.12.23"]
[EventType "swiss"]
[EventCountry "SWE"]
[SourceTitle "playchess.com"]
[Source "ChessBase"]
[SourceQuality "1"]
[TimeControl "40/5400+30:1800+30"]

{[%evp 18,41,27,14,39,23,24,0,0,-21,7,-30,-27,-50,-59,-41,-39,-40,33,-36,0,-56,14,0,0,-36]} 1. d4 {[%emt 0:04:17]} Nf6 {[%emt 0:01:58]} 2. c4 {[%emt 0:00:09]} e6 {[%emt 0:00:07]} 3. g3 {[%emt 0:00:47]} c5 {[%emt 0:00:15]} 4. d5 {[%emt 0:00:30]} exd5 {[%emt 0:00:04]} 5. cxd5 {[%emt 0:00:04]} d6 {[%emt 0:00:05]} 6. Nc3 {[%emt 0:00:03]} g6 {[%emt 0:00:03]} 7. Bg2 {[%emt 0:00:04]} Bg7 {[%emt 0:00:03]} 8. Nf3 {[%emt 0:00:03]} O-O {[%emt 0:00:06]} 9. O-O {[%emt 0:00:49]} Re8 {[%emt 0:00:04]} 10. Bf4 {[%emt 0:01:24]} Bf5 {[%emt 0:00:05]} 11. Nh4 {[%emt 0:02:37] Nxf5 would now be deadly.} Bg4 {[%emt 0:00:30][%cal Ob7b5]} 12. h3 {[%emt 0:02:22]} Nh5 {[%emt 0:00:37]} 13. Bd2 {[%emt 0:10:58]} Bd7 {[%emt 0:01:13]} 14. Qb3 {[%emt 0:06:40]} Na6 {[%emt 0:20:03]} 15. Qxb7 {[%emt 0:09:29]} Nb4 {[%emt 0:01:53] Threatens to win with ...Re7.} 16. a3 $1 {[%emt 0:02:01]} Rb8 {[%emt 0:03:52]} 17. Qxa7 {[%emt 0:00:20]} Ra8 {[%emt 0:00:39]} (17... Nc2 $15 18. Rab1 Nd4) 18. Qb7 {[%emt 0:00:40]} (18. Qxa8 $1 $14 Qxa8 19. axb4) 18... Rb8 {[%emt 0:01:24][%mdl 1024] Black has compensation.} 19. Qa7 $1 {[%emt 0:00:12]} (19. Bg5 $2 f6 $19 (19... Qxg5 20. Qxd7 Nc2 21. Rab1 $11) (19... Rxb7 $2 20. Bxd8 Nc2 21. Rac1 $19)) 19... Ra8 {[%emt 0:00:25]} ({Better is} 19... Nc2 $15 20. Rab1 Nd4) 20. Qb7 {[%emt 0:02:16]} Rb8 {[%emt 0:00:29]} 21. Qa7 $1 {[%emt 0:00:29]} ({Avoid the trap} 21. Bg5 $2 f6 (21... Qxg5 22. Qxd7 Bxc3 23. axb4 $16) (21... Rxb7 $2 22. Bxd8 Nc2 23. Rac1 $19) 22. Qa7 fxg5 $19) 1/2-1/2

[Event "52nd Rilton Cup 2024-25"]
[Site "Stockholm"]
[Date "2025.01.05"]
[Round "9.15"]
[White "Khripachenko, Alexander"]
[Black "Rasti, Arvin"]
[Result "1-0"]
[ECO "B67"]
[WhiteElo "2400"]
[BlackElo "2185"]
[Annotator "TA"]
[PlyCount "83"]
[EventDate "2024.12.23"]
[EventType "swiss"]
[EventCountry "SWE"]
[SourceTitle "playchess.com"]
[Source "ChessBase"]
[SourceQuality "1"]
[TimeControl "40/5400+30:1800+30"]

{[%evp 18,83,26,18,31,33,43,12,20,5,16,0,26,4,17,20,2,0,64,28,57,58,155,158,144,107,103,101,107,106,108,112,110,74,312,324,392,381,366,156,280,154,424,380,214,225,527,491,631,657,29982,29983,29983,29984,29984,29985,29985,29986,29988,29989,29989,29990,29990,29991,29991,29992,29992,29990]} 1. e4 {[%emt 0:00:02]} c5 {[%emt 0:02:45]} 2. Nf3 {[%emt 0:00:53]} d6 {[%emt 0:00:21]} 3. d4 {[%emt 0:00:05]} cxd4 {[%emt 0:00:05]} 4. Nxd4 {[%emt 0:00:08]} Nf6 {[%emt 0:00:11]} 5. Nc3 {[%emt 0:00:05]} Nc6 {[%emt 0:00:29]} 6. Bg5 {[%emt 0:00:08]} e6 {[%emt 0:00:13]} 7. Qd2 {[%emt 0:00:07]} a6 {[%emt 0:00:07]} 8. O-O-O {[%emt 0:00:15]} Bd7 {[%emt 0:00:05]} 9. Kb1 {[%emt 0:00:28]} Be7 {[%emt 0:00:14]} 10. f3 {[%emt 0:01:02]} Nxd4 {[%emt 0:00:11]} 11. Qxd4 {[%emt 0:00:08]} Qc7 {[%emt 0:00:06]} 12. h4 {[%emt 0:00:40]} b5 {[%emt 0:00:17][%cal Bb7b5,Bb5b4][%mdl 32]} 13. Qd2 {[%emt 0:00:33]} b4 {[%emt 0:02:03]} 14. Ne2 {[%emt 0:00:10]} a5 $1 {[%emt 0:00:07]} 15. c4 {[%emt 0:00:22][%cal Bc2c4,Bc4b5][%mdl 32]} h6 {[%emt 0:00:19]} 16. Be3 {[%emt 0:06:08]} h5 {[%emt 0:00:09][%cal Od7a4]} 17. Nd4 {[%emt 0:02:54]} Ba4 {[%emt 0:08:03]} ({Better is} 17... O-O $11) 18. Rc1 {[%emt 0:02:56]} Nd7 {[%emt 0:16:12]} 19. Nb5 {[%emt 0:03:10]} Bxb5 {[%emt 0:02:55]} (19... Qb8 $14) 20. cxb5 $16 {[%emt 0:00:09]} Nc5 {[%emt 0:00:20]} 21. Qf2 {[%emt 0:05:16][%cal Oe4e5]} O-O {[%emt 0:04:58]} 22. Be2 $36 {[%emt 0:01:24][%cal Oe4e5][%mdl 2048] Black is under strong pressure.} Rfc8 {[%emt 0:02:14]} 23. Rhd1 {[%emt 0:01:30][%cal Oe4e5]} a4 {[%emt 0:14:48][%cal Ba5a4,Ba4a3][%mdl 32]} 24. e5 {[%emt 0:06:15]} d5 {[%emt 0:02:51][%cal Oa4a3] ...a3! is the strong threat.} 25. Bd4 {[%emt 0:04:56]} Qb6 $2 {[%emt 0:04:05] [#]} (25... Bf8 $16) 26. g4 $1 $18 {[%emt 0:08:35]} a3 {[%emt 0:04:18]} 27. b3 {[%emt 0:04:14]} hxg4 {[%emt 0:01:07]} 28. Rg1 {[%emt 0:08:59]} (28. fxg4 $18 {is the precise move to win. Black must now prevent Rf1.} Rc7 29. Rf1) 28... Rc7 {[%emt 0:03:24]} (28... Qd8 $16 {might work better.}) 29. Rcd1 {[%emt 0:17:50]} (29. Rxg4 Nxb3 30. Rd1 (30. Bxb6 $2 Rxc1#) (30. Rxc7 $2 Qxc7 31. Qe3 Rc8 $19) 30... Nxd4 31. Qxd4 Bc5 $19) (29. fxg4 Rac8 $14) (29. Rcf1 $18) 29... Rac8 $2 {[%emt 0:01:19]} (29... gxf3 $16 30. Qxf3 Qb7) 30. Qg3 {[%emt 0:05:30]} Bf8 {[%emt 0:06:11]} 31. Qxg4 {[%emt 0:00:18]} (31. fxg4 Qb7 32. Qf4 Ne4 $19) 31... Qb8 $2 {[%emt 0:01:12]} (31... Qa5 32. Qh5 Rb7) 32. h5 {[%emt 0:02:04][%cal Bh4h5,Bh5h6][%mdl 32]} Kh8 {[%emt 0:11:37]} 33. Qg5 {[%emt 0:01:08][%cal Oh5h6] Intending h6! and mate.} Qb7 {[%emt 0:02:04]} 34. h6 {[%emt 0:05:42]} g6 {[%emt 0:00:15]} 35. Qf6+ {[%emt 0:01:25]} Kh7 {[%emt 0:00:10]} 36. Bxc5 {[%emt 0:00:59]} Rxc5 {[%emt 0:00:30]} 37. Bd3 {[%emt 0:00:25] Active counter play!} Bxh6 {[%emt 0:02:39] [#]} 38. Bxg6+ $1 {[%emt 0:00:25][%mdl 512]} fxg6 {[%emt 0:00:20]} 39. Qxg6+ {[%emt 0:00:19]} (39. Qxe6 Qg7 (39... Rxb5 40. Rxg6 Kh8 41. Rxh6+) 40. f4 Rc2 $19 (40... Bxf4 41. Rdf1 $15)) 39... Kh8 {[%emt 0:00:11]} 40. Qxh6+ {[%emt 0:00:33]} ({And not} 40. Rh1 Rc1+ 41. Rxc1 Rxc1+ 42. Rxc1 Bxc1 43. Qf6+ (43. Kxc1 Qc7+ 44. Kd2 Qc3+ 45. Ke2 Qxe5+ 46. Kf2 Qd4+ 47. Kg2 Qe3 $11) 43... Kh7 44. Kxc1 Qc8+ 45. Kd1 Qc3 $14) 40... Qh7+ {[%emt 0:00:08]} 41. Qxh7+ {[%emt 0:30:03]} Kxh7 {[%emt 0:30:07]} 42. Rd2 {[%emt 0:00:21]} 1-0

[Event "52nd Rilton Cup 2024-25"]
[Site "Stockholm"]
[Date "2025.01.05"]
[Round "9.16"]
[White "Tarhan, Adar"]
[Black "Fiskaaen, Martin Holten"]
[Result "1-0"]
[ECO "D38"]
[WhiteElo "2481"]
[BlackElo "2311"]
[Annotator "TA"]
[PlyCount "189"]
[EventDate "2024.12.23"]
[EventType "swiss"]
[EventCountry "SWE"]
[SourceTitle "playchess.com"]
[Source "ChessBase"]
[SourceQuality "1"]
[TimeControl "40/5400+30:1800+30"]

{[%evp 88,189,61,53,52,52,53,0,52,0,50,34,34,34,39,0,41,34,34,33,34,27,34,27,27,27,27,27,27,27,27,27,58,0,0,0,58,58,91,91,122,112,104,100,95,90,104,103,121,130,141,135,258,253,267,259,256,226,325,295,295,295,356,295,295,292,461,461,460,456,445,274,281,233,280,280,440,412,435,435,460,423,557,555,554,538,520,509,515,504,772,586,2080,2017,1609,681,29971,29972,29973,29973,29977,29975,29980,29981]} 1. d4 {[%emt 0:12:17]} Nf6 {[%emt 0:00:09]} 2. Nf3 {[%emt 0:00:25]} d5 {[%emt 0:00:37]} 3. c4 {[%emt 0:00:41]} e6 {[%emt 0:00:35]} 4. Nc3 {[%emt 0:00:06]} Nbd7 {[%emt 0:00:27]} 5. Bg5 {[%emt 0:03:03]} Bb4 {[%emt 0:01:29]} 6. e3 {[%emt 0:00:43]} c5 {[%emt 0:01:43]} 7. cxd5 {[%emt 0:01:56]} exd5 {[%emt 0:00:13]} 8. Bd3 {[%emt 0:01:21]} Qa5 {[%emt 0:03:42]} 9. Qc2 {[%emt 0:07:08]} c4 {[%emt 0:01:45]} 10. Bf5 {[%emt 0:00:05]} O-O {[%emt 0:01:21]} 11. O-O {[%emt 0:00:19]} Re8 {[%emt 0:02:06]} 12. Bh4 {[%emt 0:02:50]} g6 {[%emt 0:17:23]} 13. Bxd7 {[%emt 0:01:55]} Nxd7 {[%emt 0:01:27]} 14. Ne2 {[%emt 0:02:53]} Nf8 {[%emt 0:03:48]} 15. Ng3 {[%emt 0:01:32]} Bd6 {[%emt 0:04:43]} 16. Ne5 {[%emt 0:02:36]} Bxe5 {[%emt 0:09:59]} 17. dxe5 {[%emt 0:00:03]} Rxe5 {[%emt 0:00:13]} 18. Bf6 {[%emt 0:00:29]} Re8 {[%emt 0:07:05]} 19. Bc3 {[%emt 0:10:29]} Qc5 {[%emt 0:01:06]} 20. Rad1 {[%emt 0:01:37]} Be6 {[%emt 0:05:46]} 21. Qe2 {[%emt 0:04:37]} Qc6 {[%emt 0:03:49]} 22. Qf3 {[%emt 0:07:09]} d4 {[%emt 0:02:51]} 23. Qxc6 {[%emt 0:00:05]} bxc6 {[%emt 0:00:04]} 24. Rxd4 {[%emt 0:00:03]} f5 {[%emt 0:05:21]} 25. Ne2 {[%emt 0:04:53]} Rad8 {[%emt 0:05:11]} 26. Rfd1 {[%emt 0:02:34]} Rxd4 {[%emt 0:00:14]} 27. Rxd4 {[%emt 0:00:05]} Re7 {[%emt 0:05:12]} 28. Nf4 {[%emt 0:05:45]} Bf7 {[%emt 0:00:17]} 29. h4 {[%emt 0:01:01]} Rd7 {[%emt 0:02:43]} 30. Rxd7 {[%emt 0:01:12]} Nxd7 {[%emt 0:00:02]} 31. f3 {[%emt 0:00:56]} a6 {[%emt 0:03:18]} 32. Ne2 {[%emt 0:03:13]} Kf8 {[%emt 0:02:05]} 33. a3 {[%emt 0:02:14]} Ke8 {[%emt 0:03:27]} 34. Bd4 {[%emt 0:00:15]} Nf8 {[%emt 0:01:45]} 35. Kf2 {[%emt 0:02:26]} Ne6 {[%emt 0:00:59]} 36. e4 {[%emt 0:01:47]} fxe4 {[%emt 0:01:31]} 37. fxe4 {[%emt 0:00:04]} g5 {[%emt 0:01:45]} 38. hxg5 {[%emt 0:00:04]} Nxg5 {[%emt 0:00:04]} 39. Ke3 {[%emt 0:00:26]} Ne6 {[%emt 0:02:13]} 40. Ng3 {[%emt 0:00:21]} Bg6 {[%emt 0:01:17]} 41. Nf5 {[%emt 0:30:13]} Kd7 {[%emt 0:02:10]} 42. Bc3 {[%emt 0:00:00]} c5 {[%emt 0:11:52]} 43. Nh4 {[%emt 0:00:00]} Be8 {[%emt 0:00:25]} 44. Nf3 {[%emt 0:00:00]} Kd6 {[%emt 0:02:08]} 45. Ne5 {[%emt 0:00:00]} Bb5 {[%emt 0:00:06]} 46. Ng4 {[%emt 0:00:00]} Be8 {[%emt 0:02:12]} 47. Ne5 {[%emt 0:00:00]} Bb5 {[%emt 0:00:05]} 48. Nf3 {[%emt 0:00:00]} Be8 {[%emt 0:01:46]} 49. g4 {[%emt 0:00:00]} Ba4 {[%emt 0:02:35]} 50. Be5+ {[%emt 0:00:00]} Ke7 {[%emt 0:00:40]} 51. Bc3 {[%emt 0:00:00]} Kd6 {[%emt 0:00:21]} 52. Bf6 {[%emt 0:00:00]} Be8 {[%emt 0:01:19]} 53. g5 {[%emt 0:00:00]} Bb5 {[%emt 0:03:35]} 54. Kf2 {[%emt 0:00:00]} Nf8 {[%emt 0:03:38]} 55. Kg3 {[%emt 0:00:00]} Ke6 {[%emt 0:01:42]} 56. Bc3 {[%emt 0:00:00]} Bc6 {[%emt 0:01:06]} 57. Nd2 {[%emt 0:00:00]} Ng6 {[%emt 0:01:29]} 58. Kf3 {[%emt 0:00:00]} Nh4+ {[%emt 0:01:08]} 59. Kg4 {[%emt 0:00:00]} Ng2 {[%emt 0:01:13]} 60. Kh5 {[%emt 0:00:00]} (60. Nxc4 Bxe4 61. Bd2 Bd5) (60. Kg3 $1 $14 Ne3 61. Kf3) 60... Be8+ $1 $11 {[%emt 0:00:22]} 61. Kg4 {[%emt 0:00:42]} ({White should play} 61. Kh6 $11 Bg6 62. Nxc4) 61... Bc6 $14 {[%emt 0:00:15]} 62. Kg3 $1 {[%emt 0:00:20]} (62. Nxc4 Bxe4 63. Bd2 Kd5 64. Nb6+ Kc6 $11) 62... Ne1 {[%emt 0:01:05]} 63. Nxc4 {[%emt 0:00:14]} Nc2 {[%emt 0:00:28]} 64. Kf4 {[%emt 0:00:49]} Na1 {[%emt 0:00:34]} 65. Ne3 {[%emt 0:00:59]} Nb3 {[%emt 0:00:17]} 66. Nf5 {[%emt 0:00:35]} c4 {[%emt 0:00:39]} 67. Bb4 {[%emt 0:01:08]} a5 {[%emt 0:00:33]} 68. Bc3 {[%emt 0:00:05]} Bb7 {[%emt 0:00:23]} 69. Ne3 {[%emt 0:01:01]} Ba6 {[%emt 0:00:34]} (69... a4 $16) 70. Nd5 $18 {[%emt 0:00:17]} Bb7 {[%emt 0:00:21] [#]} 71. Nf6 $1 {[%emt 0:00:26]} Nc5 {[%emt 0:00:12]} 72. Nxh7 {[%emt 0:03:30]} (72. Bxa5 $6 h6 $16) 72... Nxe4 {[%emt 0:00:16]} (72... Kf7 $142 73. Nf6 (73. Bxa5 Nd3+ 74. Ke3 Nxb2 $16) 73... Kg6 74. Bxa5 Nd3+ 75. Kg4 Nxb2) 73. Bxa5 {[%emt 0:00:31]} ({Not} 73. Nf8+ Kf7 $11) 73... Kf7 {[%emt 0:01:12]} 74. Bc3 {[%emt 0:00:03]} Nf2 {[%emt 0:00:22]} 75. Kg3 {[%emt 0:02:29]} Ne4+ {[%emt 0:00:24]} 76. Kh4 {[%emt 0:00:13]} Bc6 {[%emt 0:00:43]} (76... Kg6 $142) 77. Nf6 $18 {[%emt 0:00:18]} Nd6 {[%emt 0:00:31]} 78. Kh5 {[%emt 0:00:33]} Bf3+ {[%emt 0:00:12]} 79. Kh6 {[%emt 0:00:06]} Nf5+ {[%emt 0:00:23]} 80. Kh7 {[%emt 0:00:13]} Ne7 {[%emt 0:00:30] [#]} 81. Bb4 $1 {[%emt 0:00:32]} Ng6 {[%emt 0:00:12]} (81... c3 {was necessary.} 82. bxc3 (82. Bxc3 Bd1 $14) 82... Nc6) 82. Ng8 $18 {[%emt 0:00:42]} Be4 {[%emt 0:00:50]} 83. Nh6+ {[%emt 0:00:05]} Ke6 {[%emt 0:00:10]} 84. Kg7 {[%emt 0:00:12]} Bc2 {[%emt 0:00:32]} 85. a4 {[%emt 0:01:00]} Nf4 {[%emt 0:01:08]} 86. a5 {[%emt 0:00:03]} Be4 {[%emt 0:00:31]} 87. Bc3 {[%emt 0:00:57]} Ke7 {[%emt 0:00:29]} 88. Ng8+ {[%emt 0:00:20]} Ke6 {[%emt 0:00:07]} (88... Kd6 $142 89. a6 Kc6 90. Ne7+ Kb6) 89. Nf6 {[%emt 0:00:11]} Bf3 {[%emt 0:00:30]} 90. a6 {[%emt 0:00:30]} Kf5 {[%emt 0:00:55]} 91. Kh6 {[%emt 0:00:11]} Ke6 {[%emt 0:00:31]} 92. g6 {[%emt 0:00:13]} Nxg6 {[%emt 0:00:32]} 93. Kxg6 {[%emt 0:00:05]} Kd6 {[%emt 0:00:08]} 94. a7 {[%emt 0:00:06]} Kc7 {[%emt 0:00:10]} 95. Kf5 {[%emt 0:00:14]} 1-0

[Event "52nd Rilton Cup 2024-25"]
[Site "Stockholm"]
[Date "2025.01.05"]
[Round "9.17"]
[White "Anand, Batsukh"]
[Black "Raczek, Krzysztof"]
[Result "1/2-1/2"]
[ECO "A07"]
[WhiteElo "2234"]
[BlackElo "2443"]
[Annotator "TA"]
[PlyCount "93"]
[EventDate "2024.12.23"]
[EventType "swiss"]
[EventCountry "SWE"]
[SourceTitle "playchess.com"]
[Source "ChessBase"]
[SourceQuality "1"]
[TimeControl "40/5400+30:1800+30"]

{[%evp 9,93,-13,0,-2,-2,0,0,-32,-7,-10,0,6,4,9,7,0,0,-8,0,-8,0,-12,0,-19,-12,-16,0,0,0,0,0,-7,0,0,0,-17,0,-22,-10,-43,0,-14,-2,-8,-22,-12,-23,-22,-22,-90,-106,-120,-112,-106,-64,-98,-17,-23,-4,-83,0,0,0,0,0,-4,0,0,0,-4,0,0,0,0,0,0,0,0,0,0,0,0,0,0,0,-2]} 1. Nf3 {[%emt 0:02:20]} d5 {[%emt 0:00:17]} 2. g3 {[%emt 0:00:26]} Nc6 {[%emt 0:00:07]} 3. d4 {[%emt 0:03:38]} Bf5 {[%emt 0:00:11]} 4. a3 {[%emt 0:00:13]} e6 {[%emt 0:00:21]} 5. Bg2 {[%emt 0:01:01]} Nf6 {[%emt 0:01:42]} 6. c4 {[%emt 0:02:05]} Be7 {[%emt 0:00:25]} 7. Nc3 {[%emt 0:00:49]} Ne4 {[%emt 0:02:01]} 8. Bf4 {[%emt 0:08:18]} O-O {[%emt 0:06:10]} 9. cxd5 {[%emt 0:00:49]} exd5 {[%emt 0:00:14]} 10. Rc1 {[%emt 0:00:34]} Nxc3 {[%emt 0:33:40]} 11. Rxc3 {[%emt 0:00:08]} Bd6 {[%emt 0:00:02]} 12. Qd2 {[%emt 0:13:05]} Ne7 {[%emt 0:03:51]} 13. Bxd6 {[%emt 0:06:30]} Qxd6 {[%emt 0:00:01]} 14. Ne5 {[%emt 0:05:13]} c6 {[%emt 0:03:37]} 15. Qf4 {[%emt 0:04:11][%cal Oe5c6] Nxc6! is the strong threat.} Rad8 {[%emt 0:05:24]} 16. O-O {[%emt 0:00:50]} f6 {[%emt 0:07:10]} 17. Nd3 {[%emt 0:00:16]} Bxd3 {[%emt 0:00:17]} 18. Qxd6 {[%emt 0:00:05]} Rxd6 {[%emt 0:00:04]} 19. Rxd3 {[%emt 0:00:06]} a5 {[%emt 0:00:13]} 20. Rb3 {[%emt 0:01:43]} Rd7 {[%emt 0:01:12]} 21. Bh3 {[%emt 0:04:20]} f5 {[%emt 0:00:47]} 22. Rc1 {[%emt 0:00:38]} g5 {[%emt 0:09:24][%cal Bg7g5,Bg5g4][%mdl 32]} 23. f3 {[%emt 0:00:39]} h5 {[%emt 0:01:45]} 24. Rc5 {[%emt 0:00:23]} Ra8 {[%emt 0:00:47]} 25. e4 {[%emt 0:09:17]} a4 {[%emt 0:09:19]} 26. Re3 {[%emt 0:02:13]} g4 {[%emt 0:00:05]} 27. Bf1 $1 {[%emt 0:00:14]} dxe4 {[%emt 0:00:19]} 28. fxe4 {[%emt 0:00:24]} Rxd4 {[%emt 0:00:13]} 29. Bc4+ {[%emt 0:13:04]} (29. Re5 $11 {keeps the balance.} Kf7 30. exf5) 29... Kf8 $17 {[%emt 0:01:26]} 30. exf5 {[%emt 0:00:06] [#]} b6 $1 {[%emt 0:02:14]} 31. Rce5 {[%emt 0:00:13]} Rxc4 {[%emt 0:01:03]} 32. Rxe7 {[%emt 0:00:06][%mdl 4096] Endgame KRR-KRR} Rd8 {[%emt 0:02:11]} (32... Rc1+ $17 33. Kg2 Rc2+ 34. Re2 Rxe2+ 35. Rxe2 Ra5) 33. Re2 $1 $11 {[%emt 0:02:09]} Rd1+ {[%emt 0:02:16]} (33... Rc1+ $5 34. Kf2 Rc5 $19) 34. Kf2 {[%emt 0:02:17] [#]} (34. Kg2 $11) 34... Rd5 {[%emt 0:01:42]} ({Black should try} 34... Rc5 $1 $17) 35. f6 {[%emt 0:06:25]} Rf5+ {[%emt 0:00:51]} 36. Kg2 {[%emt 0:01:12]} Rxf6 {[%emt 0:00:33]} 37. R7e5 $1 {[%emt 0:00:44]} Rc5 {[%emt 0:02:11]} 38. Rxc5 $1 {[%emt 0:00:49]} bxc5 {[%emt 0:00:01] KR-KR. Black is a pawn up.} 39. Re4 {[%emt 0:09:55]} Rd6 {[%emt 0:00:24] ...Rd2+ would now be deadly.} 40. Kf2 {[%emt 0:00:05]} Rd2+ {[%emt 0:00:55]} 41. Re2 $1 {[%emt 0:32:38]} Rd3 {[%emt 0:33:32]} 42. Re3 {[%emt 0:00:00]} Rd2+ {[%emt 0:00:00]} 43. Re2 {[%emt 0:00:00]} Rd3 {[%emt 0:00:00]} 44. Re3 {[%emt 0:00:00]} Rd1 {[%emt 0:00:00]} 45. Re1 {[%emt 0:00:00]} Rd5 {[%emt 0:00:00]} 46. Re4 {[%emt 0:00:00]} Rd2+ {[%emt 0:00:00]} 47. Re2 $1 {[%emt 0:00:00]} 1/2-1/2